bitfinex/quotes_ETHUSD_20250724
["timestamp","ask_amount","ask_price","bid_price","bid_amount"]
[1753333967472,0.1384,3593.7,3593.0,0.43056578]
[1753333967672,4.421,3593.6,3593.4,0.6493]
[1753333967968,4.421,3593.6,3593.1,0.2395]
[1753333967969,4.421,3593.6,3593.1,0.6493]
[1753333968340,0.4292,3593.5,3593.1,0.6493]
[1753333968539,0.4292,3593.5,3593.1,3.43239218]
[1753333968736,0.1384,3593.7,3593.1,0.6493]
[1753333968940,0.04,3593.9,3593.6,2.78272484]
[1753333969138,4.421,3593.8,3593.7,2.78264741]
[1753333969445,4.421,3593.8,3593.5,0.1384]
[1753333970058,7.20360901,3593.8,3593.5,0.1384]
[1753333970371,7.20360901,3593.8,3593.4,0.6493]
[1753333970667,7.20359837,3593.8,3593.3,0.1384]
[1753333970836,4.8502,3593.8,3593.3,0.1384]
[1753333971031,2.78283293,3593.5,3593.3,0.1384]
[1753333971370,4.421,3593.4,3593.3,0.1384]
[1753333971734,0.4292,3593.4,3592.8,0.6493]
[1753333972059,4.42,3593.3,3592.8,0.7877]
[1753333972233,2.78304737,3593.2,3592.8,0.7877]
[1753333972439,2.78304737,3593.2,3592.5,0.6493]
[1753333972440,2.78317391,3593.1,3592.5,0.6493]
[1753333972657,2.92157391,3593.1,3592.5,3.57127583]
[1753333972843,0.1384,3593.1,3592.5,3.57127583]
[1753333973070,2.92158678,3593.1,3592.5,0.7877]
[1753333973457,2.92158678,3593.1,3592.5,3.57126461]
[1753333973768,2.78296307,3593.3,3592.8,0.1384]
[1753333974273,2.78298094,3593.3,3592.8,0.1384]
[1753333974470,7.20303887,3593.2,3592.8,0.1384]
[1753333974840,2.78303887,3593.2,3592.8,0.1384]
[1753333975169,4.42,3593.1,3592.8,0.1384]
[1753333975566,4.42,3593.0,3592.8,0.1384]
[1753333975953,4.42,3592.9,3592.8,0.1384]
[1753333976273,4.42,3592.9,3592.8,2.9217306]
[1753333976467,4.42,3592.9,3592.8,0.1384]
[1753333976668,2.78305289,3593.2,3592.8,0.1384]
[1753333976871,4.42,3593.1,3592.8,0.1384]
[1753333977858,4.42,3593.1,3592.8,2.92171418]
[1753333978244,4.42,3593.1,3592.8,0.1384]
[1753333978966,7.20314099,3593.1,3592.8,0.1384]
[1753333979163,4.42,3593.1,3592.8,0.1384]
[1753333979541,4.419,3593.0,3592.8,2.9217248]
[1753333979745,4.419,3592.9,3592.8,2.9217248]
[1753333980068,4.419,3592.9,3592.8,2.92174446]
[1753333980372,4.419,3592.9,3592.8,0.1384]
[1753333981441,3.56538918,3593.2,3592.8,0.1384]
[1753333981639,4.419,3593.1,3592.8,0.1384]
[1753333981849,7.63132187,3593.1,3592.8,0.1384]
[1753333982449,0.002,3593.3,3592.8,0.1384]
[1753333982674,4.419,3593.2,3592.8,0.1384]
[1753333982857,0.002,3593.3,3592.8,0.1384]
[1753333983052,4.419,3593.1,3592.9,2.78322089]
[1753333983260,4.419,3593.0,3592.8,2.92171584]
[1753333983460,4.419,3593.0,3592.9,2.78326699]
[1753333983690,0.002,3593.3,3593.1,0.6493]
[1753333983890,0.002,3593.3,3592.8,2.80407529]
[1753333983891,4.419,3593.2,3592.9,0.1384]
[1753333984186,4.419,3593.2,3593.1,0.1384]
[1753333984489,4.45378793,3593.2,3592.9,0.1384]
[1753333984691,2.7833309,3592.9,3592.3,4.71]
[1753333984893,4.4537918,3592.8,3592.6,0.1384]
[1753333985262,7.23714765,3592.8,3592.6,0.1384]
[1753333985602,4.419,3592.8,3592.6,0.1384]
[1753333985789,4.419,3592.7,3592.6,2.92184132]
[1753333985956,4.419,3592.7,3592.6,0.1384]
[1753333986299,0.4292,3593.1,3592.6,0.1384]
[1753333986467,0.1384,3593.2,3592.6,2.92188726]
[1753333986652,4.418,3593.1,3592.7,3.43268903]
[1753333986857,4.418,3593.1,3592.8,0.1384]
[1753333987099,0.03478986,3593.0,3592.8,0.1384]
[1753333987389,0.4292,3592.9,3592.6,0.1384]
[1753333987592,0.0347918,3592.8,3592.6,0.1384]
[1753333987792,4.418,3592.7,3592.6,0.1384]
[1753333989493,7.20142193,3592.7,3592.6,0.1384]
[1753333989798,7.65242193,3592.7,3592.4,0.1384]
[1753333989967,7.65242723,3592.7,3592.4,0.1384]
[1753333990493,0.03479374,3592.6,3592.4,0.1384]
[1753333991296,3.56490274,3593.3,3592.4,2.78358828]
[1753333991505,4.418,3593.2,3592.7,2.78340026]
[1753333991795,4.418,3593.2,3592.8,0.1384]
[1753333992167,2.78323958,3593.0,3592.8,0.1384]
[1753333992375,4.9037889,3593.1,3592.3,0.6493]
[1753333992376,2.78358677,3592.5,3592.3,0.6493]
[1753333992598,2.78380936,3592.2,3592.1,0.001]
[1753333992764,7.23660697,3592.2,3592.1,0.001]
[1753333992965,7.20180936,3592.2,3592.1,0.001]
[1753333993166,7.65280936,3592.2,3592.1,0.001]
[1753333993470,11.46310936,3592.2,3592.1,0.001]
[1753333994301,41.46310936,3592.2,3592.1,1e-08]
[1753333994598,3.55954187,3591.9,3591.8,1e-08]
[1753333994773,44.70034239,3591.9,3591.8,1e-08]
[1753333994979,45.11654187,3591.9,3591.8,1e-08]
[1753333995763,40.69954187,3591.9,3591.8,1e-08]
[1753333995967,45.11754187,3591.9,3591.8,1e-08]
[1753333996191,5.78427441,3591.6,3591.5,1e-08]
[1753333996387,10.20227441,3591.6,3591.5,1e-08]
[1753333996601,10.20227441,3591.6,3591.3,0.001]
[1753333996602,3.0,3591.4,3591.3,1e-08]
[1753333996802,10.20142947,3591.4,3591.3,1e-08]
[1753333997012,10.65242947,3591.4,3591.3,1e-08]
[1753333997213,10.65242947,3591.4,3590.7,0.1392]
[1753333997214,2.78489473,3590.8,3590.7,0.07920001]
[1753333997391,4.417,3590.8,3590.5,0.1392]
[1753333997593,2.78504985,3590.6,3590.5,0.1392]
[1753333997922,2.78520939,3590.4,3590.0,0.6493]
[1753333998081,4.417,3590.3,3590.2,0.1392]
[1753333998423,4.417,3590.3,3589.4,0.2395]
[1753333998424,4.868,3590.3,3589.7,0.6493]
[1753333998627,4.90281603,3590.3,3590.0,0.1392]
[1753333998912,0.1392,3590.6,3589.5,0.1392]
[1753333998913,8.44376014,3590.2,3589.5,0.1392]
[1753333999276,1.2404,3590.2,3589.5,0.1392]
[1753333999481,2.78505768,3590.6,3589.7,2.78572199]
[1753333999700,2.78469453,3591.1,3589.4,3.43520836]
[1753333999701,0.7912,3591.2,3590.2,0.6493]
[1753333999907,0.1392,3591.0,3590.9,2.78481717]
[1753334000181,2.92333171,3591.8,3591.1,0.1392]
[1753334000377,4.418,3591.7,3591.2,2.92377264]
[1753334000581,0.1392,3591.8,3591.2,2.92377264]
[1753334000882,4.417,3591.7,3591.2,2.92377264]
[1753334001078,0.1392,3591.8,3591.5,2.78434756]
[1753334001283,0.1392,3591.8,3591.2,0.1392]
[1753334001284,4.417,3591.7,3591.4,2.78441757]
[1753334001492,3.0,3592.0,3591.4,2.78441757]
[1753334001493,3.0,3592.0,3591.4,0.1392]
[1753334001694,4.90280052,3591.9,3591.4,0.1392]
[1753334002095,30.451,3591.8,3590.9,0.6493]
[1753334002415,30.451,3591.8,3590.0,2.78548852]
[1753334002416,0.9304,3591.4,3590.8,0.1392]
[1753334002614,0.9304,3591.4,3590.0,0.2395]
[1753334002615,2.78481717,3590.9,3590.0,0.6493]
[1753334002820,4.417,3590.8,3590.3,0.1392]
[1753334002983,2.78505256,3590.6,3590.3,0.1392]
[1753334003183,4.417,3590.5,3590.0,0.6493]
[1753334003384,4.417,3590.5,3588.4,2.78672493]
[1753334003385,2.78531019,3590.3,3589.9,0.1392]
[1753334003613,7.20236014,3590.2,3589.9,0.1392]
[1753334003816,4.417,3590.2,3589.9,0.1392]
[1753334004018,7.20236014,3590.2,3589.9,0.1402]
[1753334004223,2.78529124,3590.3,3589.9,0.1402]
[1753334004387,4.417,3590.2,3589.9,0.1402]
[1753334005119,4.418,3590.2,3589.9,0.1402]
[1753334005620,7.20336014,3590.2,3589.9,0.1402]
[1753334006026,7.65436014,3590.2,3589.9,0.1402]
[1753334006385,8.41386014,3590.2,3589.9,0.001]
[1753334006717,3.99586014,3590.2,3589.9,0.001]
[1753334006920,4.417,3590.2,3589.9,0.001]
[1753334007117,7.20236014,3590.2,3589.9,0.001]
[1753334007325,0.1392,3590.4,3589.9,0.001]
[1753334007501,4.417,3590.3,3589.9,0.001]
[1753334007703,4.417,3590.2,3590.1,0.4792]
[1753334007897,4.418,3590.2,3590.1,0.4792]
[1753334008089,3.0,3590.5,3590.1,0.4792]
[1753334008421,0.1392,3590.7,3590.1,0.4792]
[1753334008613,4.418,3590.6,3590.2,3.43459142]
[1753334008919,4.418,3590.5,3590.2,0.6493]
[1753334009119,4.418,3590.4,3590.1,0.4792]
[1753334009315,4.418,3590.4,3590.3,2.78528256]
[1753334009697,0.451,3591.2,3590.3,2.78528256]
[1753334009698,0.1392,3590.9,3590.4,2.78515714]
[1753334009899,0.1392,3590.9,3590.3,2.92448256]
[1753334010112,4.418,3590.8,3590.6,0.1392]
[1753334010316,4.418,3590.8,3590.1,0.34]
[1753334010490,4.418,3590.8,3590.6,2.92419323]
[1753334010691,0.1392,3591.2,3590.6,0.1392]
[1753334010890,4.418,3591.1,3590.7,2.78497228]
[1753334011115,4.418,3591.1,3590.6,2.92422554]
[1753334011312,0.8224,3591.0,3590.6,0.1392]
[1753334011498,0.451,3590.9,3590.6,0.1392]
[1753334011703,4.417,3590.8,3590.6,0.1392]
[1753334011911,0.451,3590.7,3590.6,0.1392]
[1753334012817,0.451,3590.7,3590.2,3.43463353]
[1753334012818,0.451,3590.7,3590.4,0.1392]
[1753334013027,0.48581312,3590.6,3590.4,0.1392]
[1753334013203,4.417,3590.5,3590.1,0.34]
[1753334013530,2.82005674,3590.4,3590.2,0.1392]
[1753334013923,3.23628256,3590.3,3590.2,0.1392]
[1753334014092,3.23628256,3590.3,3590.1,0.34]
[1753334014093,3.53596014,3590.2,3590.1,0.34]
[1753334014298,8.40396014,3590.2,3590.1,0.34]
[1753334014530,8.54316014,3590.2,3590.1,0.34]
[1753334016098,11.54316014,3590.2,3590.1,0.34]
[1753334019526,7.12616014,3590.2,3590.1,0.34]
[1753334019934,4.417,3590.2,3590.1,0.34]
[1753334020227,7.65766014,3590.2,3590.1,0.34]
[1753334021426,3.24066014,3590.2,3590.1,0.34]
[1753334021643,0.8295,3590.5,3590.1,0.34]
[1753334021816,0.4553,3590.6,3590.1,0.34]
[1753334021817,4.5562,3590.4,3590.1,0.34]
[1753334022130,2.78528256,3590.3,3590.1,0.34]
[1753334022331,7.20236014,3590.2,3590.1,0.34]
[1753334022705,4.417,3590.2,3590.1,0.34]
[1753334023010,2.92442339,3590.4,3590.1,0.34]
[1753334023222,7.20230283,3590.3,3590.1,0.34]
[1753334023540,2.78536014,3590.2,3590.1,0.34]
[1753334023843,3.7807,3590.8,3590.1,0.34]
[1753334023844,0.4553,3590.5,3590.1,0.34]
[1753334024025,2.78507126,3590.6,3590.1,1.1285]
[1753334024330,7.20113742,3590.5,3590.1,1.1285]
[1753334024537,0.49011506,3590.4,3590.1,0.4792]
[1753334024720,0.4553,3590.3,3590.1,0.4792]
[1753334025042,4.416,3590.2,3590.1,0.4792]
[1753334026034,4.8713,3590.2,3590.1,0.4792]
[1753334026215,4.8713,3590.2,3590.1,0.34]
[1753334026216,7.65666014,3590.2,3590.1,0.34]
[1753334026420,7.65666014,3590.2,3590.1,0.341]
[1753334026421,4.416,3590.2,3590.1,0.341]
[1753334026842,2.7851875,3590.5,3590.1,0.341]
[1753334027139,0.8119,3590.6,3590.1,0.341]
[1753334027140,4.8713,3590.4,3590.1,0.341]
[1753334027332,7.65655428,3590.4,3590.1,0.341]
[1753334027640,2.78536014,3590.2,3590.1,0.341]
[1753334027843,7.20136014,3590.2,3590.1,0.341]
[1753334028004,11.48886014,3590.2,3590.1,0.341]
[1753334032143,41.48886014,3590.2,3590.1,0.341]
[1753334033239,3.56183618,3589.2,3589.1,0.04]
[1753334033445,4.5552,3589.2,3589.1,0.04]
[1753334033740,7.34133618,3589.2,3589.1,0.04]
[1753334033911,7.79663618,3589.2,3589.1,0.04]
[1753334034836,3.38063618,3589.2,3589.1,0.04]
[1753334035140,7.79663618,3589.2,3589.1,0.04]
[1753334035552,10.79663618,3589.2,3589.1,0.04]
[1753334036536,10.79663618,3589.2,3588.6,0.001]
[1753334036537,2.78652436,3588.7,3588.6,0.001]
[1753334036763,47.70435591,3588.7,3588.6,0.001]
[1753334037070,48.12482436,3588.7,3588.6,0.001]
[1753334037264,43.70882436,3588.7,3588.6,0.001]
[1753334037636,48.12482436,3588.7,3588.6,0.001]
[1753334038188,5.78691265,3588.2,3588.1,0.04]
[1753334038330,5.78691265,3588.2,3588.0,0.38958375]
[1753334038331,5.78699032,3588.1,3588.0,0.37958375]
[1753334038537,10.20299032,3588.1,3588.0,0.37958375]
[1753334039343,10.65829032,3588.1,3588.0,0.37958375]
[1753334040537,11.43589032,3588.1,3588.0,0.37958375]
[1753334040938,1.2329,3588.1,3587.1,0.04]
[1753334041151,3.0,3587.9,3587.1,0.04]
[1753334041343,3.24238052,3588.0,3587.1,0.04]
[1753334041565,2.787396,3587.6,3587.2,0.8077]
[1753334041873,7.20448029,3587.5,3587.2,0.8077]
[1753334042061,4.417,3587.5,3587.2,0.8077]
[1753334042266,2.78761185,3587.3,3587.2,0.8077]
[1753334042580,4.417,3587.3,3587.2,0.8077]
[1753334045877,4.417,3587.3,3587.1,0.04]
[1753334046379,2.78768956,3587.2,3587.1,0.04]
[1753334047550,3.24298956,3587.2,3587.1,0.04]
[1753334050355,7.66098956,3587.2,3587.1,0.04]
[1753334050962,7.66098956,3587.2,3586.1,2.82854184]
[1753334050963,0.7819,3586.2,3586.1,1e-08]
[1753334051157,0.1392,3587.1,3586.1,1e-08]
[1753334051158,0.1392,3586.3,3586.1,1e-08]
[1753334051394,0.1392,3586.6,3586.1,1e-08]
[1753334051591,4.421,3586.5,3586.1,1e-08]
[1753334051895,2.7884669,3586.2,3586.1,1e-08]
[1753334052080,38.04192273,3586.2,3586.1,1e-08]
[1753334052281,11.4852669,3586.2,3586.1,1e-08]
[1753334052458,41.4852669,3586.2,3586.1,1e-08]
[1753334053265,11.4852669,3586.2,3586.1,1e-08]
[1753334053462,2.78832035,3586.4,3586.1,1e-08]
[1753334053463,30.0,3586.4,3586.1,1e-08]
[1753334053686,3.1392,3586.8,3586.1,1e-08]
[1753334053890,0.1392,3586.8,3586.3,0.7984]
[1753334054090,0.4742,3587.4,3586.3,0.7984]
[1753334054374,4.5792,3587.3,3586.7,0.1392]
[1753334054574,4.44,3587.3,3586.7,0.1392]
[1753334054773,0.03484611,3587.2,3586.1,1e-08]
[1753334054988,4.5812,3587.1,3586.5,0.1392]
[1753334055385,4.5812,3587.1,3586.1,1e-08]
[1753334055386,3.5884669,3586.2,3586.1,1e-08]
[1753334055592,8.06732273,3586.2,3586.1,1e-08]
[1753334055895,38.5066669,3586.2,3586.1,1e-08]
[1753334056285,4.49,3586.3,3586.1,1e-08]
[1753334056474,0.1392,3586.2,3586.1,1e-08]
[1753334057864,4.49,3586.3,3586.1,1e-08]
[1753334058601,0.4742,3586.9,3586.1,1e-08]
[1753334058768,4.6242,3586.8,3586.2,0.1392]
[1753334059100,0.03485097,3586.7,3586.2,0.1392]
[1753334059274,4.6242,3586.8,3586.2,0.1392]
[1753334059474,4.6242,3586.8,3586.4,2.78825001]
[1753334059682,4.6232,3586.8,3586.3,2.78837203]
[1753334060082,4.6232,3586.8,3586.2,0.1392]
[1753334060470,4.6232,3586.8,3586.5,0.7768]
[1753334061007,4.481,3586.7,3586.2,0.9402]
[1753334061503,0.03485194,3586.6,3586.2,0.9402]
[1753334061904,4.481,3586.7,3586.3,2.78838664]
[1753334062105,4.481,3586.7,3586.2,3.7286469]
[1753334062472,4.481,3586.7,3586.2,0.9402]
[1753334062774,4.477,3586.7,3586.2,1.1797]
[1753334062985,4.477,3586.7,3586.6,2.78815591]
[1753334063716,0.1392,3587.1,3586.5,0.1392]
[1753334063717,4.476,3587.0,3586.7,2.78807039]
[1753334064008,4.476,3587.0,3586.6,2.78814676]
[1753334064166,4.476,3587.0,3586.2,0.801]
[1753334064374,4.476,3587.0,3586.8,0.1392]
[1753334065619,0.783,3587.9,3586.8,0.1392]
[1753334065620,2.78707897,3588.0,3586.9,1.0133]
[1753334065913,4.473,3587.7,3587.3,2.78759692]
[1753334066080,2.92627635,3588.0,3587.6,0.1392]
[1753334066081,2.78722995,3587.8,3587.6,0.1392]
[1753334066276,2.78730105,3587.7,3587.6,0.1392]
[1753334066481,2.82214231,3587.7,3587.6,0.1392]
[1753334066694,7.29314231,3587.7,3587.6,0.1392]
[1753334066891,7.25830105,3587.7,3587.6,0.1392]
[1753334067077,2.78745644,3587.5,3587.0,0.7738]
[1753334067281,2.82223996,3587.6,3587.3,0.1392]
[1753334067616,4.471,3587.7,3587.3,2.92680064]
[1753334067775,6.44373482,3588.8,3587.5,0.8]
[1753334067776,0.4742,3588.8,3587.5,0.8]
[1753334067975,0.9671,3588.9,3588.3,0.1392]
[1753334068222,7.2902813,3588.8,3588.3,0.1392]
[1753334068380,0.1392,3588.5,3587.9,0.1392]
[1753334068605,2.78697719,3588.2,3587.9,0.1392]
[1753334068914,0.03483543,3588.3,3587.9,0.1392]
[1753334069106,0.4742,3588.2,3587.9,0.1392]
[1753334069292,4.9422,3588.2,3587.9,0.1392]
[1753334069475,4.9770364,3588.2,3587.9,0.1392]
[1753334069678,2.787068,3588.0,3587.2,0.7812]
[1753334070014,0.002,3587.8,3587.3,0.1392]
[1753334070214,4.9502,3587.7,3587.3,0.1392]
[1753334070399,0.03484223,3587.6,3587.3,0.1392]
[1753334071531,4.476,3587.7,3587.3,0.1392]
[1753334072104,4.476,3587.7,3587.3,2.92673783]
[1753334072355,0.002,3587.8,3587.4,2.73753414]
[1753334072648,0.002,3587.8,3587.7,2.78730105]
[1753334072813,0.002,3587.8,3587.7,3.54180105]
[1753334072997,0.002,3587.8,3587.7,3.78130105]
[1753334074902,0.002,3587.8,3587.7,3.80216842]
[1753334075123,0.002,3587.8,3587.7,3.78130105]
[1753334075834,0.002,3587.8,3587.7,3.80216842]
[1753334076004,0.002,3587.8,3587.7,3.78130105]
[1753334077251,1e-08,3587.8,3587.7,3.80216842]
[1753334077398,1e-08,3587.8,3587.7,4.33130105]
[1753334077601,1e-08,3587.8,3587.7,4.35216842]
[1753334078018,1e-08,3587.8,3587.7,12.0109594]
[1753334078294,1e-08,3587.8,3587.7,7.5439594]
[1753334078428,1e-08,3587.8,3587.7,12.0119594]
[1753334079134,1e-08,3587.8,3587.7,11.24830105]
[1753334079836,1e-08,3587.8,3587.7,11.25130105]
[1753334080038,1e-08,3587.8,3587.7,3.78130105]
[1753334080199,1e-08,3587.8,3587.7,8.25030105]
[1753334080738,1e-08,3587.8,3587.7,8.24830105]
[1753334081206,1e-08,3587.8,3587.7,3.54180105]
[1753334081407,1e-08,3587.8,3587.7,0.7545]
[1753334081607,1e-08,3587.8,3587.7,3.54180105]
[1753334082009,1e-08,3587.8,3587.7,2.78730105]
[1753334083243,1e-08,3587.8,3587.7,2.80816842]
[1753334083423,1e-08,3587.8,3587.7,3.04766842]
[1753334083643,1e-08,3587.8,3587.7,3.83930105]
[1753334083836,1e-08,3587.8,3587.7,3.59980105]
[1753334084624,1e-08,3587.8,3587.3,2.78756804]
[1753334084625,0.44340001,3587.8,3587.3,0.781]
[1753334084877,0.4434,3587.7,3587.1,2.78776652]
[1753334085181,0.4434,3587.7,3587.0,0.816]
[1753334085322,0.4434,3587.7,3587.2,2.78766749]
[1753334085529,0.4434,3587.7,3587.4,2.78748476]
[1753334086424,1e-08,3587.8,3587.2,0.020873]
[1753334086624,1e-08,3587.8,3587.0,3.62471735]
[1753334086838,1e-08,3587.8,3587.1,2.78776727]
[1753334087071,1e-08,3587.8,3587.0,0.83687367]
[1753334087072,1e-08,3587.8,3587.7,2.78730105]
[1753334087255,1e-08,3587.8,3587.7,3.59570105]
[1753334087837,1e-08,3587.8,3587.7,3.83520105]
[1753334088347,1e-08,3587.8,3587.7,3.59570105]
[1753334088733,1e-08,3587.8,3587.4,2.78753414]
[1753334089072,0.4434,3587.7,3587.5,2.78745171]
[1753334089270,1e-08,3587.8,3587.4,2.78747769]
[1753334089473,1e-08,3587.8,3586.9,0.821]
[1753334089474,0.4434,3587.6,3587.2,2.78767157]
[1753334089672,0.4434,3587.6,3587.4,2.78753414]
[1753334089970,0.4434,3587.6,3587.4,2.78752435]
[1753334090268,0.4434,3587.6,3587.0,4.459]
[1753334090433,0.4434,3587.6,3587.4,2.78752904]
[1753334090633,1e-08,3587.8,3587.5,2.78742183]
[1753334090842,3.00000001,3587.8,3587.2,2.78762962]
[1753334091042,1e-08,3587.8,3587.5,2.78739181]
[1753334091247,0.44340001,3587.8,3587.2,2.78768956]
[1753334091447,1e-08,3587.8,3587.7,2.78730105]
[1753334092047,1e-08,3587.8,3586.9,0.821]
[1753334092048,2.78699032,3588.1,3587.8,0.49999999]
[1753334092252,3.0,3587.9,3587.8,0.49999999]
[1753334092763,3.4434,3587.9,3587.8,0.49999999]
[1753334092949,6.23054568,3587.9,3587.8,0.49999999]
[1753334093151,3.23054568,3587.9,3587.8,0.49999999]
[1753334093469,0.4434,3587.9,3587.8,0.49999999]
[1753334094029,3.60504663,3588.5,3587.8,0.49999999]
[1753334094230,0.4434,3588.4,3587.8,0.49999999]
[1753334094483,2.78705717,3588.1,3587.8,0.49999999]
[1753334094680,0.4434,3588.4,3587.8,0.63919999]
[1753334094681,0.4434,3588.0,3587.8,0.63919999]
[1753334095188,0.4434,3587.9,3587.8,0.63919999]
[1753334097571,4.00284568,3587.9,3587.8,0.49999999]
[1753334097976,4.037685,3587.9,3587.8,0.49999999]
[1753334098440,7.037685,3587.9,3587.8,0.49999999]
[1753334098642,11.45084568,3587.9,3587.8,0.49999999]
[1753334099473,7.00284568,3587.9,3587.8,0.49999999]
[1753334099639,11.44984568,3587.9,3587.8,0.49999999]
[1753334100580,11.58604568,3587.9,3587.8,0.49999999]
[1753334100964,7.14204568,3587.9,3587.8,0.49999999]
[1753334101167,11.58604568,3587.9,3587.8,0.49999999]
[1753334102255,11.58404568,3587.9,3587.8,0.49999999]
[1753334102759,11.58304568,3587.9,3587.8,0.49999999]
[1753334103572,7.14204568,3587.9,3587.8,0.49999999]
[1753334103780,11.58004568,3587.9,3587.8,0.49999999]
[1753334104874,11.57804568,3587.9,3587.8,0.49999999]
[1753334105990,7.14204568,3587.9,3587.8,0.49999999]
[1753334106286,0.002,3588.1,3587.8,0.49999999]
[1753334106589,4.433,3587.9,3587.8,0.63919999]
[1753334106763,7.66354568,3587.9,3587.8,0.49999999]
[1753334107090,4.8764,3587.9,3587.8,0.49999999]
[1753334107477,0.4434,3587.9,3587.8,0.49999999]
[1753334107676,4.432,3587.9,3587.8,0.49999999]
[1753334107889,4.432,3587.9,3587.8,0.63919999]
[1753334108556,7.21914568,3587.9,3587.8,0.63919999]
[1753334108753,11.46714568,3587.9,3587.8,0.49999999]
[1753334109074,8.68,3587.9,3587.8,0.49999999]
[1753334109279,11.46714568,3587.9,3587.8,0.49999999]
[1753334110162,8.68,3587.9,3587.8,0.49999999]
[1753334110796,11.46714568,3587.9,3587.8,0.49999999]
[1753334110970,8.68,3587.9,3587.8,0.49999999]
[1753334111177,7.429,3587.9,3587.8,0.49999999]
[1753334111763,0.1392,3588.0,3587.8,0.49999999]
[1753334111969,0.002,3588.1,3587.8,3.4264068]
[1753334112302,0.002,3588.1,3588.0,2.787068]
[1753334112466,4.429,3588.1,3588.0,2.926268]
[1753334113002,4.429,3588.1,3588.0,3.165768]
[1753334113350,4.429,3588.1,3588.0,2.926268]
[1753334114069,0.002,3588.1,3588.0,2.926268]
[1753334114269,0.002,3588.1,3588.0,3.165768]
[1753334114483,0.002,3588.1,3588.0,3.969868]
[1753334116736,1e-08,3588.1,3588.0,3.99072954]
[1753334116897,1e-08,3588.1,3588.0,3.969868]
[1753334117837,1e-08,3588.1,3588.0,3.730368]
[1753334118904,1e-08,3588.1,3588.0,3.969868]
[1753334119108,1e-08,3588.1,3588.0,3.99072954]
[1753334119296,1e-08,3588.1,3588.0,3.969868]
[1753334120890,1e-08,3588.1,3588.0,3.730368]
[1753334121427,1e-08,3588.1,3588.0,3.969868]
[1753334122226,1e-08,3588.1,3588.0,3.99072954]
[1753334122528,1e-08,3588.1,3588.0,3.969868]
[1753334122912,1e-08,3588.1,3588.0,3.99072954]
[1753334123295,1e-08,3588.1,3588.0,3.969868]
[1753334124525,1e-08,3588.1,3588.0,3.99072954]
[1753334124728,0.002,3588.6,3588.5,3.57697967]
[1753334124729,1e-08,3588.6,3588.5,3.57697967]
[1753334125228,1e-08,3588.6,3588.5,3.95567967]
[1753334125823,1e-08,3588.6,3588.5,3.97653149]
[1753334126022,0.002,3589.6,3589.2,3.58773618]
[1753334126652,0.002,3589.6,3589.2,3.96643618]
[1753334127100,0.002,3589.6,3589.2,3.98727443]
[1753334127304,1e-08,3589.3,3589.2,8.41127443]
[1753334127497,1e-08,3589.6,3589.5,2.78590332]
[1753334127805,1e-08,3589.6,3589.5,3.61560332]
[1753334128008,1e-08,3589.6,3589.5,8.41730332]
[1753334128209,0.04,3589.9,3589.5,8.41730332]
[1753334128210,1e-08,3589.9,3589.8,3.61887051]
[1753334128423,1e-08,3589.9,3589.8,8.06269712]
[1753334128628,1e-08,3590.7,3590.6,3.61824985]
[1753334129112,1e-08,3590.7,3590.6,4.01776094]
[1753334129329,1e-08,3590.7,3590.6,3.99694985]
[1753334129709,1e-08,3590.7,3590.6,4.01776094]
[1753334129911,1e-08,3590.9,3590.6,4.30744985]
[1753334130111,1e-08,3590.9,3590.8,3.55779473]
[1753334130414,1e-08,3590.9,3590.8,4.26780194]
[1753334130641,1e-08,3590.9,3590.8,4.50730194]
[1753334130946,1e-08,3590.9,3590.8,4.48649473]
[1753334131644,1e-08,3590.9,3590.8,8.92930194]
[1753334131944,1e-08,3590.9,3590.8,8.90849473]
[1753334132753,1e-08,3590.9,3590.8,11.90849473]
[1753334133269,0.002,3592.6,3592.1,2.78388686]
[1753334133428,0.002,3592.6,3592.5,2.78357689]
[1753334133612,0.002,3592.6,3592.5,7.36475116]
[1753334133808,0.002,3592.6,3592.5,7.58347689]
[1753334134758,0.002,3592.6,3592.5,2.92197689]
[1753334135531,0.467,3592.6,3592.5,0.1384]
[1753334135730,0.467,3592.6,3592.5,2.92197689]
[1753334136036,0.002,3592.6,3592.5,2.92197689]
[1753334136954,0.002,3592.6,3592.5,2.94275116]
[1753334137117,0.002,3592.6,3592.5,3.72785116]
[1753334137314,0.002,3592.6,3592.5,3.70707689]
[1753334137954,0.002,3592.6,3592.5,3.72785116]
[1753334138322,1e-08,3592.6,3592.5,3.96735116]
[1753334138518,1e-08,3592.6,3592.5,3.94657689]
[1753334139053,1e-08,3592.6,3592.5,8.12707689]
[1753334140059,1e-08,3592.6,3592.5,8.36657689]
[1753334140821,1e-08,3592.6,3592.5,8.91657689]
[1753334141026,0.002,3593.3,3593.2,2.78303462]
[1753334141227,0.002,3593.3,3593.2,2.92143462]
[1753334141628,0.437,3593.3,3593.2,2.92143462]
[1753334142023,0.002,3593.3,3593.2,2.92143462]
[1753334142661,0.437,3593.3,3593.2,2.92143462]
[1753334143162,0.437,3593.3,3593.2,0.1384]
[1753334144182,0.437,3593.3,3593.2,2.92143462]
[1753334144880,0.002,3593.3,3593.2,2.92143462]
[1753334145285,0.002,3593.3,3593.2,2.94219533]
[1753334145448,0.002,3593.3,3593.2,2.92143462]
[1753334146993,0.002,3593.3,3593.2,7.33943462]
[1753334147353,1e-08,3593.4,3593.3,2.78295717]
[1753334147789,1e-08,3593.4,3593.3,7.19995717]
[1753334148102,1e-08,3593.4,3593.3,2.78295717]
[1753334148465,1e-08,3593.4,3593.3,3.04321594]
[1753334148652,1e-08,3594.1,3594.0,2.78241513]
[1753334148867,1e-08,3594.1,3594.0,7.97981513]